bitfinex-derivatives/quotes_BTCF0:USTF0_20250912
["timestamp","ask_amount","ask_price","bid_price","bid_amount"]
[1757689230696,0.02228,115350.0,115340.0,0.39559]
[1757689231003,0.25910273,115350.0,115340.0,0.39559]
[1757689231199,0.02228,115350.0,115340.0,0.63241273]
[1757689231401,0.23686273,115350.0,115340.0,0.63241273]
[1757689231596,4e-05,115350.0,115340.0,0.63241273]
[1757689231798,4e-05,115350.0,115340.0,0.71908623]
[1757689231998,4e-05,115350.0,115340.0,2.00418896]
[1757689233206,4e-05,115350.0,115340.0,2.09518896]
[1757689233599,4e-05,115350.0,115340.0,2.00518896]
[1757689234207,4e-05,115350.0,115340.0,2.00618896]
[1757689235104,4e-05,115350.0,115340.0,1.20790896]
[1757689235409,4e-05,115350.0,115340.0,2.00614896]
[1757689235610,4e-05,115350.0,115340.0,1.5324635]
[1757689235806,4e-05,115350.0,115340.0,2.00610896]
[1757689236009,4e-05,115350.0,115340.0,1.5324635]
[1757689236308,4e-05,115350.0,115340.0,2.00610896]
[1757689237709,4e-05,115350.0,115340.0,1.20790896]
[1757689237908,0.23686273,115350.0,115340.0,1.76924623]
[1757689238110,0.23686273,115350.0,115340.0,1.5324235]
[1757689238306,0.23686273,115350.0,115340.0,0.97108623]
[1757689238616,0.25910273,115350.0,115340.0,1.2823835]
[1757689239413,0.25910273,115350.0,115340.0,0.4842635]
[1757689239713,0.02228,115350.0,115340.0,1.19571]
[1757689239908,0.25910273,115350.0,115340.0,0.39759]
[1757689240214,0.25910273,115350.0,115340.0,1.19571]
[1757689240711,0.25910273,115350.0,115340.0,1.43253273]
[1757689241313,0.25910273,115350.0,115340.0,1.19571]
[1757689241514,0.25910273,115350.0,115340.0,1.43249273]
[1757689241808,0.25910273,115350.0,115340.0,0.63441273]
[1757689242009,0.25910273,115350.0,115340.0,1.43249273]
[1757689242212,0.02228,115350.0,115340.0,0.63441273]
[1757689242414,0.02228,115350.0,115340.0,1.43249273]
[1757689242614,0.25910273,115350.0,115340.0,0.39759]
[1757689244710,0.74592546,115350.0,115340.0,0.39759]
[1757689245909,0.75621546,115350.0,115340.0,0.38468]
[1757689246312,0.28257,115350.0,115340.0,0.38468]
[1757689246612,0.75621546,115350.0,115340.0,0.38468]
[1757689247918,1.55421546,115350.0,115340.0,0.38468]
[1757689248817,1.55421546,115350.0,115340.0,0.3628]
[1757689249015,1.55421546,115350.0,115340.0,0.002]
[1757689249016,1.79103819,115350.0,115340.0,0.002]
[1757689249519,0.03245,115340.0,115330.0,0.3608]
[1757689249718,0.76282312,115340.0,115330.0,0.3608]
[1757689249917,1.01282312,115340.0,115330.0,0.3608]
[1757689250916,1.01282312,115340.0,115330.0,0.3628]
[1757689251317,1.01282312,115340.0,115330.0,0.3638]
[1757689252020,0.30235493,115340.0,115330.0,0.3638]
[1757689252209,1.01282312,115340.0,115330.0,0.3638]
[1757689254318,1.08120566,115340.0,115330.0,0.3638]
[1757689255023,1.87916566,115340.0,115330.0,0.3638]
[1757689255615,1.87916566,115340.0,115330.0,0.003]
[1757689256324,2.23996566,115340.0,115330.0,0.003]
[1757689256525,1.44200566,115340.0,115330.0,0.003]
[1757689256723,2.24000566,115340.0,115330.0,0.003]
[1757689259330,2.23996566,115340.0,115330.0,0.003]
[1757689261523,1.44200566,115340.0,115330.0,0.003]
[1757689261729,1.44200566,115340.0,115330.0,0.02409]
[1757689261730,0.91873747,115340.0,115330.0,0.02409]
[1757689261921,1.62920566,115340.0,115330.0,0.03796]
[1757689262117,1.62920566,115340.0,115330.0,0.02409]
[1757689262332,1.62920566,115340.0,115330.0,0.003]
[1757689265631,1.99000566,115340.0,115330.0,0.003]
[1757689267435,2.24000566,115340.0,115310.0,0.37351]
[1757689267734,0.74679819,115320.0,115310.0,0.38189]
[1757689267932,1.54475819,115320.0,115310.0,0.38189]
[1757689268730,1.54475819,115320.0,115310.0,0.38289]
[1757689268931,1.54475819,115320.0,115310.0,0.3618]
[1757689268932,1.56529425,115320.0,115310.0,0.3618]
[1757689269234,1.56529425,115320.0,115310.0,0.38389]
[1757689270428,1.56529425,115320.0,115310.0,0.3628]
[1757689270631,0.76733425,115320.0,115310.0,0.3628]
[1757689270929,1.57403396,115320.0,115310.0,0.3628]
[1757689271324,1.57403396,115320.0,115310.0,0.3658]
[1757689271727,1.57403396,115320.0,115300.0,0.3608]
[1757689272022,0.03347,115300.0,115290.0,0.02109]
[1757689272228,0.74393819,115300.0,115290.0,0.74269]
[1757689272429,0.74393819,115300.0,115290.0,0.38189]
[1757689272838,0.76438885,115300.0,115290.0,0.38189]
[1757689273034,0.03633,115290.0,115280.0,0.39576]
[1757689273237,1.31077546,115290.0,115280.0,0.39576]
[1757689273739,1.31077546,115290.0,115280.0,0.38189]
[1757689274036,1.31097546,115290.0,115280.0,0.38189]
[1757689275442,1.31097546,115290.0,115280.0,0.38889]
[1757689276038,1.31073546,115290.0,115280.0,0.38889]
[1757689276732,1.31057546,115290.0,115280.0,0.38889]
[1757689277034,1.31053546,115290.0,115280.0,0.38889]
[1757689277243,1.31049546,115290.0,115280.0,0.38889]
[1757689278639,1.31197546,115290.0,115280.0,0.38889]
[1757689279636,0.50997546,115290.0,115280.0,0.38889]
[1757689279832,1.31165546,115290.0,115280.0,0.38889]
[1757689280629,1.31165546,115290.0,115280.0,0.40276]
[1757689281042,0.50997546,115290.0,115280.0,0.40276]
[1757689281236,0.49681546,115290.0,115280.0,0.40276]
[1757689281441,1.29829546,115290.0,115280.0,0.40276]
[1757689281843,0.49681546,115290.0,115280.0,0.40276]
[1757689282047,1.29829546,115290.0,115280.0,0.40276]
[1757689282239,0.49681546,115290.0,115280.0,0.40276]
[1757689282441,1.15095034,115300.0,115290.0,0.03651]
[1757689282643,1.41383505,115300.0,115290.0,0.39731]
[1757689282839,1.38777307,115300.0,115290.0,0.39731]
[1757689283644,0.58637307,115300.0,115290.0,0.39731]
[1757689283842,1.38789307,115300.0,115290.0,0.39731]
[1757689284140,0.56592241,115300.0,115290.0,0.39731]
[1757689284337,0.09227695,115300.0,115290.0,0.40131]
[1757689284535,0.56592241,115300.0,115290.0,0.40131]
[1757689284934,0.56592241,115300.0,115290.0,0.40431]
[1757689285131,1.36724241,115300.0,115290.0,0.40431]
[1757689285334,1.36724241,115300.0,115290.0,0.89113273]
[1757689285531,1.36724241,115300.0,115290.0,0.65431]
[1757689286247,0.89359695,115300.0,115290.0,0.65431]
[1757689286442,1.36724241,115300.0,115290.0,0.65431]
[1757689288246,0.56592241,115300.0,115290.0,0.65431]
[1757689288449,1.36688241,115300.0,115290.0,0.65431]
[1757689289041,0.89323695,115300.0,115290.0,0.65431]
[1757689289241,1.36688241,115300.0,115290.0,0.65431]
[1757689289951,0.89323695,115300.0,115290.0,0.65431]
[1757689290248,1.36688241,115300.0,115290.0,0.65431]
[1757689290546,1.20926109,115300.0,115290.0,0.65431]
[1757689291250,1.24850641,115300.0,115290.0,0.39059]
[1757689291647,1.40651848,115300.0,115290.0,0.39059]
[1757689291851,1.24850641,115300.0,115290.0,0.39059]
[1757689292447,1.24850641,115300.0,115290.0,0.02979]
[1757689292650,1.40651848,115300.0,115290.0,0.02979]
[1757689292837,1.40651848,115300.0,115290.0,0.007]
[1757689298955,1.65651848,115300.0,115290.0,0.007]
[1757689299156,2.01731848,115300.0,115290.0,0.007]
[1757689299357,0.03581,115280.0,115270.0,0.38359]
[1757689299556,1.35638095,115280.0,115270.0,0.3608]
[1757689299855,1.35638095,115280.0,115270.0,0.38359]
[1757689300550,1.35638095,115280.0,115270.0,0.3608]
[1757689300855,1.35638095,115280.0,115270.0,0.3658]
[1757689301056,1.60638095,115280.0,115270.0,0.3658]
[1757689301758,1.13234474,115280.0,115270.0,0.3658]
[1757689301954,1.60638095,115280.0,115270.0,0.3688]
[1757689302758,0.03294,115260.0,115250.0,0.38359]
[1757689302954,1.35223207,115260.0,115250.0,0.02279]
[1757689303550,1.66825621,115260.0,115250.0,0.02279]
[1757689303755,1.51024414,115260.0,115250.0,0.02279]
[1757689304561,1.51024414,115260.0,115250.0,0.02679]
[1757689304761,0.70976414,115260.0,115250.0,0.02679]
[1757689304962,1.50996414,115260.0,115250.0,0.02679]
[1757689305357,1.58007316,115260.0,115250.0,0.008]
[1757689305761,0.77987316,115260.0,115250.0,0.03079]
[1757689305962,1.58885786,115260.0,115250.0,0.03079]
[1757689306356,1.58897786,115260.0,115250.0,0.04382]
[1757689306550,1.57860786,115260.0,115250.0,0.04382]
[1757689306755,1.56974316,115260.0,115250.0,0.04382]
[1757689307054,1.56974316,115260.0,115250.0,0.03982]
[1757689307055,1.58151175,115260.0,115250.0,0.03982]
[1757689307254,1.58151175,115260.0,115250.0,0.03582]
[1757689307455,0.78135175,115260.0,115250.0,0.03582]
[1757689307655,0.77258316,115260.0,115250.0,0.03582]
[1757689307858,1.57270316,115260.0,115250.0,0.03582]
[1757689308260,1.57274316,115260.0,115250.0,0.03582]
[1757689308666,0.77258316,115260.0,115250.0,0.03582]
[1757689308858,1.21202316,115260.0,115250.0,0.03582]
[1757689309058,0.41178316,115260.0,115250.0,0.03582]
[1757689309460,1.21190316,115260.0,115250.0,0.03582]
[1757689309960,1.21202316,115260.0,115250.0,0.03582]
[1757689310160,0.41178316,115260.0,115250.0,0.03582]
[1757689310360,1.05389109,115260.0,115250.0,0.28582]
[1757689310969,1.21190316,115260.0,115250.0,0.28582]
[1757689311165,1.05389109,115260.0,115250.0,0.28582]
[1757689311565,1.05381109,115260.0,115250.0,0.28582]
[1757689316779,1.21182316,115260.0,115250.0,0.28582]
[1757689317077,1.21126316,115260.0,115250.0,0.28582]
[1757689319882,0.89523902,115260.0,115250.0,0.28582]
[1757689320071,1.05325109,115260.0,115250.0,0.28582]
[1757689320278,0.8032,115260.0,115250.0,0.64137007]
[1757689320477,0.96121207,115260.0,115250.0,0.64137007]
[1757689320672,0.96121207,115260.0,115250.0,0.89137007]
[1757689320878,0.003,115260.0,115250.0,0.89137007]
[1757689322589,0.003,115260.0,115250.0,0.90881106]
[1757689323796,0.18304207,115260.0,115250.0,0.66406099]
[1757689324092,0.34105414,115260.0,115250.0,0.41406099]
[1757689325692,0.18304207,115260.0,115250.0,0.41406099]
[1757689329595,0.34105414,115260.0,115250.0,0.41406099]
[1757689330993,0.18304207,115260.0,115250.0,0.41406099]
[1757689332587,0.003,115260.0,115250.0,0.41406099]
[1757689332896,0.18304207,115260.0,115250.0,0.41406099]
[1757689333194,0.16101207,115260.0,115250.0,0.65881096]
[1757689333996,0.003,115260.0,115250.0,0.65881096]
[1757689334298,0.02503,115260.0,115250.0,0.41406099]
[1757689334687,0.18304207,115260.0,115250.0,0.41406099]
[1757689338595,0.02503,115260.0,115250.0,0.41406099]
[1757689338994,0.18304207,115260.0,115250.0,0.41406099]
[1757689339695,0.16101207,115260.0,115250.0,0.50079889]
[1757689339899,0.16101207,115260.0,115250.0,0.65881096]
[1757689340194,0.18304207,115260.0,115250.0,0.65881096]
[1757689340402,0.16101207,115260.0,115250.0,0.65881096]
[1757689341601,0.003,115260.0,115250.0,0.65881096]
[1757689341802,0.003,115260.0,115250.0,0.50079889]
[1757689342103,0.003,115260.0,115250.0,0.65881096]
[1757689343594,0.003,115260.0,115250.0,1.29955889]
[1757689343897,0.003,115260.0,115250.0,1.45757096]
[1757689344206,0.18230207,115260.0,115250.0,1.37095306]
[1757689344388,0.18230207,115260.0,115250.0,0.41406099]
[1757689344594,0.16101207,115260.0,115250.0,1.21294099]
[1757689344801,0.16101207,115260.0,115250.0,1.45769096]
[1757689345010,0.003,115260.0,115250.0,1.45769096]
[1757689345703,0.02429,115260.0,115250.0,1.37099306]
[1757689345903,0.18230207,115260.0,115250.0,1.21298099]
[1757689346393,0.18230207,115260.0,115250.0,1.29971889]
[1757689347806,0.003,115260.0,115250.0,1.45773096]
[1757689348608,0.003,115260.0,115250.0,0.65881096]
[1757689348906,0.003,115260.0,115250.0,1.45753096]
[1757689351004,0.003,115260.0,115250.0,1.70753096]
[1757689351198,0.15801207,115280.0,115250.0,1.95228093]
[1757689351409,0.17930207,115280.0,115270.0,0.19246207]
[1757689351605,0.17930207,115280.0,115270.0,0.03445]
[1757689352407,0.49647306,115280.0,115270.0,0.27154153]
[1757689353105,0.49647306,115280.0,115270.0,0.03445]
[1757689353306,0.49847306,115280.0,115270.0,0.03445]
[1757689353711,0.76122306,115280.0,115270.0,0.02149]
[1757689354605,0.02429,115280.0,115270.0,0.27154153]
[1757689354810,0.26138153,115280.0,115270.0,0.27154153]
[1757689355113,0.49847306,115280.0,115270.0,0.03445]
[1757689355506,0.75918306,115280.0,115270.0,0.02149]
[1757689356407,2.15755459,115280.0,115270.0,0.02149]
[1757689356615,0.01275,115270.0,115250.0,0.01303]
[1757689356806,1.54383459,115260.0,115250.0,0.02149]
[1757689357012,0.03404,115250.0,115240.0,0.02149]
[1757689357207,0.75822306,115250.0,115240.0,0.02149]
[1757689358708,0.75822306,115250.0,115240.0,0.02449]
[1757689359414,0.50822306,115250.0,115240.0,0.02449]
[1757689360217,0.75822306,115250.0,115240.0,0.003]
[1757689360620,0.82790797,115250.0,115240.0,0.003]
[1757689361218,1.18870797,115250.0,115240.0,0.003]
[1757689361619,1.48926644,115250.0,115240.0,0.03745]
[1757689361923,0.68886644,115250.0,115240.0,0.03745]
[1757689362717,0.45177491,115250.0,115240.0,0.03745]
[1757689362914,0.63912502,115260.0,115250.0,0.01296]
[1757689363119,1.31585655,115260.0,115250.0,0.27154153]
[1757689363418,0.51541655,115260.0,115250.0,0.03445]
[1757689363611,1.31653655,115260.0,115250.0,0.03445]
[1757689364018,0.27832502,115260.0,115250.0,0.27154153]
[1757689364218,0.51541655,115260.0,115250.0,0.03445]
[1757689364416,1.31673655,115260.0,115250.0,0.03445]
[1757689364621,0.51541655,115260.0,115250.0,0.03545]
[1757689364810,0.01994349,115260.0,115250.0,0.27254153]
[1757689365015,0.28006502,115260.0,115250.0,0.27254153]
[1757689365616,0.28006502,115260.0,115250.0,0.63334153]
[1757689366319,0.51715655,115260.0,115250.0,0.03545]
[1757689366618,0.89070655,115260.0,115250.0,0.02249]
[1757689367415,0.51715655,115260.0,115250.0,0.03631]
[1757689367618,1.31891655,115260.0,115250.0,0.03631]
[1757689374733,0.51715655,115260.0,115250.0,0.03631]
[1757689374932,1.31811655,115260.0,115250.0,0.03631]
[1757689376033,1.69166655,115260.0,115250.0,0.02249]
[1757689376235,1.69166655,115260.0,115250.0,0.001]
[1757689376431,1.69166655,115260.0,115250.0,0.02215]
[1757689378429,0.89070655,115260.0,115250.0,0.02215]
[1757689378635,1.69218655,115260.0,115250.0,0.02215]
[1757689379834,1.69218655,115260.0,115250.0,0.03609]
[1757689381537,0.89070655,115260.0,115250.0,0.03609]
[1757689381731,0.87795655,115260.0,115250.0,0.03609]
[1757689381937,1.67903655,115260.0,115250.0,0.27318153]
[1757689382135,1.67903655,115260.0,115250.0,0.03609]
[1757689382329,0.87795655,115260.0,115250.0,0.03609]
[1757689382530,1.67967655,115260.0,115250.0,0.03609]
[1757689382737,1.31887655,115260.0,115250.0,0.03609]
[1757689382936,1.20549349,115260.0,115250.0,0.03609]
[1757689383238,1.31887655,115260.0,115250.0,0.03609]
[1757689384237,0.51715655,115260.0,115250.0,0.03609]
[1757689384539,1.67967655,115260.0,115250.0,0.03609]
[1757689385332,1.69242655,115260.0,115250.0,0.001]
[1757689385531,2.17951808,115260.0,115250.0,0.001]
[1757689387040,2.17951808,115260.0,115220.0,0.61085153]
[1757689387041,0.01173,115230.0,115220.0,0.37376]
[1757689387340,1.38066027,115230.0,115220.0,0.38195]
[1757689387539,1.30960306,115230.0,115220.0,0.38195]
[1757689387739,1.67040306,115230.0,115220.0,0.02115]
[1757689387931,1.67040306,115230.0,115210.0,0.37474]
[1757689388135,0.49619306,115220.0,115210.0,0.03509]
[1757689389039,0.03272,115210.0,115200.0,0.38195]
[1757689389240,1.30898306,115210.0,115200.0,0.38195]
[1757689390144,0.50690306,115210.0,115200.0,0.38195]
[1757689390344,1.30910306,115210.0,115200.0,0.38195]
[1757689390645,1.30910306,115210.0,115200.0,0.38795]
[1757689390845,1.31786412,115210.0,115200.0,0.38795]
[1757689391347,1.38649742,115210.0,115200.0,0.38795]
[1757689392143,0.58429742,115210.0,115200.0,0.38795]
[1757689392349,1.38613742,115210.0,115200.0,0.38795]
[1757689392536,1.38613742,115210.0,115200.0,0.39295]
[1757689392740,1.38613742,115210.0,115200.0,0.03215]
[1757689393241,0.58429742,115210.0,115200.0,0.03215]
[1757689393550,1.38609742,115210.0,115200.0,0.03215]
[1757689394040,0.58429742,115210.0,115200.0,0.03215]
[1757689394351,1.38589742,115210.0,115200.0,0.03215]
[1757689394748,1.38585742,115210.0,115200.0,0.04609]
[1757689395549,0.58429742,115210.0,115200.0,0.04609]
[1757689395736,1.38593742,115210.0,115200.0,0.04609]
[1757689397051,0.58429742,115210.0,115200.0,0.04609]
[1757689397251,1.38593742,115210.0,115200.0,0.04609]
[1757689397745,1.74673742,115210.0,115200.0,0.04609]
[1757689397939,1.38593742,115210.0,115200.0,0.04609]
[1757689398138,1.74673742,115210.0,115200.0,0.04609]
[1757689398550,1.27255436,115210.0,115200.0,0.04609]
[1757689398750,1.74673742,115210.0,115200.0,0.04609]
[1757689399050,0.94509742,115210.0,115200.0,0.04609]
[1757689399242,1.74633742,115210.0,115200.0,0.03215]
[1757689400851,0.94509742,115210.0,115200.0,0.03215]
[1757689401145,1.49825589,115210.0,115200.0,0.53223153]
[1757689401344,1.13745589,115210.0,115200.0,0.29514]
[1757689403543,1.37454742,115210.0,115200.0,0.29514]
[1757689404351,1.74605742,115210.0,115200.0,0.011]
[1757689405848,1.74605742,115210.0,115200.0,0.03399]
[1757689406350,1.74605742,115210.0,115200.0,0.02799]
[1757689406747,1.74605742,115210.0,115200.0,0.005]
[1757689407149,0.01173,115200.0,115190.0,0.02299]
[1757689407353,0.86971306,115200.0,115190.0,0.02299]
[1757689407551,0.85798306,115200.0,115190.0,0.03598]
[1757689408049,0.49718306,115200.0,115190.0,0.03598]
[1757689408249,0.49718306,115200.0,115190.0,0.03698]
[1757689409450,0.50891306,115200.0,115190.0,0.02399]
[1757689409754,1.35680459,115200.0,115190.0,0.001]
[1757689410341,1.35680459,115200.0,115190.0,0.002]
[1757689412254,1.38301899,115200.0,115190.0,0.002]
[1757689412454,0.98842702,115200.0,115190.0,0.002]
[1757689413154,1.12055393,115200.0,115190.0,0.002]
[1757689413355,1.14677913,115200.0,115190.0,0.002]
[1757689415450,0.89677913,115200.0,115190.0,0.002]
[1757689417462,0.9278833,115200.0,115190.0,0.002]
[1757689418157,1.7281633,115200.0,115190.0,0.002]
[1757689418660,1.7281633,115200.0,115160.0,0.39678]
[1757689418661,0.023,115170.0,115160.0,0.39678]
[1757689418860,1.14020262,115170.0,115160.0,0.39678]
[1757689419059,1.53797751,115170.0,115160.0,0.02299]
[1757689419358,1.60667624,115170.0,115160.0,0.02299]
[1757689419759,1.58041135,115170.0,115150.0,0.39109453]
[1757689419956,1.58041135,115170.0,115150.0,0.41408453]
[1757689419957,0.33968262,115160.0,115150.0,0.41408453]
[1757689421356,0.34822982,115160.0,115150.0,0.39678]
[1757689421562,1.14850982,115160.0,115150.0,0.40078]
[1757689421763,1.14846982,115160.0,115150.0,0.40078]
[1757689421962,0.0315472,115160.0,115150.0,0.40478]
[1757689422160,0.023,115160.0,115150.0,0.40478]
[1757689422462,0.98154131,115160.0,115150.0,0.04398]
[1757689423060,0.18134131,115160.0,115150.0,0.04398]
[1757689423457,0.823,115160.0,115150.0,0.04398]
[1757689423651,0.823,115160.0,115150.0,0.40478]
[1757689423652,0.98134131,115160.0,115150.0,0.40478]
[1757689425167,0.98999352,115160.0,115150.0,0.40478]
[1757689425464,0.98134131,115160.0,115150.0,0.40478]
[1757689426655,0.42949873,115170.0,115150.0,0.65478]
[1757689426962,1.43703631,115170.0,115160.0,0.0368]
[1757689427162,0.63711631,115170.0,115160.0,0.0368]
[1757689427462,1.07711631,115170.0,115160.0,0.0368]
[1757689427955,0.918815,115170.0,115160.0,0.0368]
[1757689428154,1.07715631,115170.0,115160.0,0.2868]
[1757689428354,1.07715631,115170.0,115160.0,0.2898]
[1757689428561,0.117975,115170.0,115160.0,0.2898]
[1757689428864,1.07743631,115170.0,115160.0,0.2898]
[1757689429066,0.27631631,115170.0,115160.0,0.2898]
[1757689429259,1.07739631,115170.0,115160.0,0.2898]
[1757689430859,1.07743631,115170.0,115160.0,0.2898]
[1757689431469,0.27635631,115170.0,115160.0,0.3786049]
[1757689431663,0.82453,115170.0,115160.0,0.45014131]
[1757689432159,0.98287131,115170.0,115160.0,0.44914131]
[1757689432563,0.98287131,115170.0,115160.0,0.2908]
[1757689432873,0.98287131,115170.0,115160.0,0.3776049]
[1757689433069,0.82453,115170.0,115160.0,0.3776049]
[1757689433276,0.98287131,115170.0,115160.0,0.53594621]
[1757689433458,0.15838131,115170.0,115160.0,0.49914621]
[1757689433771,0.98129131,115170.0,115160.0,0.2893]
[1757689434172,0.02151,115170.0,115160.0,0.89524621]
[1757689434670,0.02151,115170.0,115160.0,0.7369049]
[1757689434870,0.02151,115170.0,115160.0,0.89524621]
[1757689435263,4e-05,115170.0,115160.0,0.89524621]
[1757689437775,0.15838131,115170.0,115160.0,0.6501]
[1757689438970,0.31672262,115170.0,115160.0,0.02592]
[1757689439567,0.56672262,115170.0,115160.0,0.02592]
[1757689439765,0.92752262,115170.0,115160.0,0.02592]
[1757689439972,0.95379482,115170.0,115160.0,0.02592]
[1757689440167,0.79545351,115170.0,115160.0,0.02592]
[1757689440371,0.3871122,115170.0,115160.0,0.02592]
[1757689440571,0.18465351,115170.0,115160.0,0.02592]
[1757689441473,0.15838131,115170.0,115160.0,0.02592]
[1757689441970,0.2290867,115170.0,115160.0,0.02592]
[1757689444176,0.2290867,115170.0,115160.0,0.38672]
[1757689444177,0.07074539,115170.0,115160.0,0.38672]
[1757689444371,4e-05,115170.0,115160.0,0.88186621]
[1757689444678,4e-05,115170.0,115160.0,1.04020752]
[1757689444875,4e-05,115170.0,115160.0,1.04870791]
[1757689445076,4e-05,115170.0,115160.0,0.8903666]
[1757689446180,4e-05,115170.0,115160.0,1.04870791]
[1757689447473,4e-05,115170.0,115160.0,1.85050791]
[1757689449176,4e-05,115170.0,115160.0,1.85018791]
[1757689450479,4e-05,115170.0,115160.0,1.53350529]
[1757689450780,4e-05,115170.0,115160.0,1.85022791]
[1757689451179,4e-05,115170.0,115160.0,1.85010791]
[1757689453175,0.3608,115200.0,115180.0,0.0867879]
[1757689453380,0.51914131,115200.0,115180.0,1.04644921]
[1757689453581,0.51914131,115200.0,115180.0,0.24512921]
[1757689454182,0.15834131,115190.0,115180.0,0.60592921]
[1757689454388,2.11704395,115210.0,115180.0,0.60592921]
[1757689454574,0.15834131,115200.0,115180.0,0.4475879]
[1757689454776,0.15834131,115200.0,115180.0,1.40700921]
[1757689454975,0.15834131,115200.0,115180.0,1.40696921]
[1757689455178,0.16034131,115200.0,115180.0,1.40696921]
[1757689455377,0.16034131,115200.0,115180.0,1.47707833]
[1757689455576,0.16134131,115200.0,115180.0,0.67603833]
[1757689455887,0.15834131,115190.0,115180.0,0.3608]
[1757689456276,0.003,115200.0,115180.0,0.3608]
[1757689456474,0.15834131,115190.0,115180.0,0.3608]
[1757689456877,0.31668262,115190.0,115180.0,0.3608]
[1757689457084,0.15834131,115190.0,115180.0,0.3608]
[1757689459189,0.3608,115200.0,115180.0,0.3608]
[1757689459385,0.15834131,115190.0,115180.0,0.3608]
[1757689460595,0.15834131,115190.0,115180.0,0.4475898]
[1757689460795,0.15834131,115190.0,115180.0,0.60593111]
[1757689460984,0.15834131,115190.0,115180.0,0.3608]
[1757689461501,0.15834131,115190.0,115180.0,0.4475898]
[1757689462199,0.15834131,115190.0,115180.0,0.60593111]
[1757689462498,0.15834131,115190.0,115180.0,0.3608]
[1757689468705,0.51914131,115200.0,115180.0,0.3608]
[1757689469202,0.15834131,115190.0,115180.0,0.3608]
[1757689470003,0.15834131,115190.0,115180.0,0.51914131]
[1757689470204,0.15834131,115190.0,115180.0,1.31926131]
[1757689470405,0.001,115200.0,115180.0,1.56439032]
[1757689470608,0.001,115200.0,115190.0,0.51914131]
[1757689470902,0.15934131,115200.0,115190.0,0.51914131]
[1757689471104,0.15934131,115200.0,115190.0,0.3608]
[1757689471303,0.16134131,115200.0,115190.0,0.3608]
[1757689472506,0.16034131,115200.0,115190.0,0.3608]
[1757689472904,0.16034131,115200.0,115180.0,1.40604901]
[1757689473500,0.16134131,115200.0,115180.0,1.40604901]
[1757689473807,0.003,115200.0,115190.0,0.3608]
[1757689474007,0.16134131,115200.0,115190.0,0.3608]
[1757689474410,0.47783758,115200.0,115190.0,0.59821879]
[1757689474803,0.003,115200.0,115190.0,0.59821879]
[1757689475003,0.47783758,115200.0,115190.0,0.59821879]
[1757689476810,0.47683758,115200.0,115190.0,0.59821879]
[1757689477012,0.47783758,115200.0,115190.0,0.3608]
[1757689477211,0.47783758,115200.0,115190.0,0.59821879]
[1757689478009,0.47783758,115200.0,115190.0,0.3608]
[1757689478205,0.47783758,115200.0,115190.0,0.59821879]
[1757689478811,0.24041879,115200.0,115190.0,0.59821879]
[1757689482713,0.003,115200.0,115190.0,0.68500109]
[1757689482918,0.24041879,115200.0,115190.0,0.68500109]
[1757689483214,0.24041879,115200.0,115190.0,0.59821879]
[1757689483411,0.003,115200.0,115190.0,0.59821879]
[1757689483611,0.24041879,115200.0,115190.0,0.68500109]
[1757689483809,0.003,115200.0,115190.0,0.68500109]
[1757689484511,0.003,115200.0,115190.0,0.69376537]
[1757689488008,0.003,115200.0,115190.0,0.45634658]
[1757689488309,0.003,115200.0,115190.0,0.69376537]
[1757689489415,0.24041879,115200.0,115190.0,0.69376537]
[1757689489922,0.24041879,115200.0,115190.0,0.3608]
[1757689490112,0.47783758,115200.0,115190.0,1.39801879]
[1757689490419,0.47783758,115200.0,115180.0,0.3608]
[1757689490617,0.23741879,115190.0,115180.0,1.16056]
[1757689490818,0.23741879,115190.0,115180.0,1.39797879]
[1757689491414,0.23741879,115190.0,115170.0,0.68495624]
[1757689491620,0.47483758,115180.0,115160.0,0.00878032]
[1757689491918,0.23741879,115170.0,115160.0,1.16056]
[1757689492119,0.23741879,115170.0,115160.0,1.40676517]
[1757689492318,0.23741879,115170.0,115160.0,1.39797879]
[1757689492915,0.23741879,115170.0,115160.0,0.3608]
[1757689493108,0.23741879,115170.0,115160.0,1.16256]
[1757689493313,0.23741879,115170.0,115160.0,0.3628]
[1757689493815,0.23741879,115170.0,115160.0,0.3648]
[1757689494416,0.23741879,115170.0,115160.0,0.004]
[1757689494617,0.72483758,115170.0,115160.0,0.004]
[1757689495021,0.75946758,115170.0,115160.0,0.02514]
[1757689500819,0.51031879,115170.0,115160.0,0.0388]
[1757689501025,0.26031879,115170.0,115160.0,0.27621879]
[1757689501726,0.26031879,115170.0,115160.0,0.63701879]
[1757689501927,0.62111879,115170.0,115160.0,0.02514]
[1757689502130,1.12026758,115170.0,115160.0,0.004]
[1757689502424,1.12026758,115170.0,115160.0,0.02514]
[1757689502425,1.92010758,115170.0,115160.0,0.02514]
[1757689502728,2.15752637,115170.0,115160.0,0.004]
[1757689502928,1.92010758,115170.0,115160.0,0.004]
[1757689504128,1.12026758,115170.0,115160.0,0.004]
[1757689504427,1.92014758,115170.0,115160.0,0.004]
[1757689504826,1.12026758,115170.0,115160.0,0.004]
[1757689505028,1.92014758,115170.0,115160.0,0.004]
[1757689509022,1.12026758,115170.0,115160.0,0.004]
[1757689509423,1.92018758,115170.0,115160.0,0.004]
[1757689512730,1.12026758,115170.0,115160.0,0.004]
[1757689513033,1.92022758,115170.0,115160.0,0.004]
[1757689514733,1.44539,115170.0,115160.0,0.004]
[1757689514930,1.92022758,115170.0,115160.0,0.004]
[1757689515227,1.67022758,115170.0,115160.0,0.02514]
[1757689518036,1.90764637,115170.0,115160.0,0.004]
[1757689518222,2.15764637,115170.0,115160.0,0.004]
[1757689519227,2.18390553,115170.0,115160.0,0.004]
[1757689520738,1.82310553,115170.0,115160.0,0.004]
[1757689521036,2.54470553,115170.0,115160.0,0.004]
[1757689523034,0.01039,115140.0,115130.0,0.37446]
[1757689523244,1.30851758,115140.0,115130.0,0.39661]
[1757689523730,1.29812758,115140.0,115130.0,0.39661]
[1757689524132,1.29812758,115140.0,115130.0,0.03581]
[1757689524331,0.01173,115130.0,115120.0,0.03159104]
[1757689524535,0.50985758,115130.0,115120.0,0.04008104]
[1757689524731,0.87947585,115130.0,115120.0,0.02215]
[1757689524931,0.03368,115120.0,115110.0,0.02215]
[1757689525236,1.37845478,115120.0,115110.0,0.02215]
[1757689525437,1.30851758,115120.0,115110.0,0.02215]